[Event "*** Titled Tuesday Blitz"]
[Site "Chess.com"]
[Date "2020.11.24"]
[Round "5"]
[White "Ranindu2003"]
[Black "Sacbutt"]
[Result "1-0"]
[WhiteElo "2546"]
[BlackElo "2292"]
[TimeControl "180+1"]
[EndTime "11:09:37 PST"]
[Termination "Ranindu2003 won by resignation"]

1. e4 {[%clk 0:02:59.6]} 1... d5 {[%clk 0:03:00]} 2. exd5 {[%clk 0:02:59.3]}
2... Qxd5 {[%clk 0:03:00.9]} 3. Nc3 {[%clk 0:02:59.9]} 3... Qd6 {[%clk
0:03:01.2]} 4. d4 {[%clk 0:03:00.4]} 4... c6 {[%clk 0:03:01.5]} 5. Nf3 {[%clk
0:03:00.9]} 5... Nf6 {[%clk 0:03:02]} 6. Ne5 {[%clk 0:02:59.3]} 6... Nbd7 {[%clk
0:03:00.7]} 7. f4 {[%clk 0:02:59.4]} 7... Nd5 {[%clk 0:02:56.5]} 8. Ne4 {[%clk
0:02:57.7]} 8... Qc7 {[%clk 0:02:56]} 9. c4 {[%clk 0:02:57.1]} 9... N5f6 {[%clk
0:02:33.5]} 10. Bd3 {[%clk 0:02:54.5]} 10... Nxe4 {[%clk 0:02:32.6]} 11. Bxe4
{[%clk 0:02:55.4]} 11... Nf6 {[%clk 0:02:32.8]} 12. Bf3 {[%clk 0:02:55.2]} 12...
Bf5 {[%clk 0:02:31.3]} 13. O-O {[%clk 0:02:54.8]} 13... e6 {[%clk 0:02:12]} 14.
Re1 {[%clk 0:02:50.6]} 14... Be7 {[%clk 0:01:56.7]} 15. g4 {[%clk 0:02:39.8]}
15... Bg6 {[%clk 0:01:56]} 16. h4 {[%clk 0:02:37.8]} 16... h5 {[%clk 0:01:44.8]}
17. Nxg6 {[%clk 0:02:37.3]} 17... fxg6 {[%clk 0:01:44.7]} 18. g5 {[%clk
0:02:37.6]} 18... Ng4 {[%clk 0:01:36.8]} 19. Bxg4 {[%clk 0:02:31.6]} 19... hxg4
{[%clk 0:01:36.4]} 20. Qxg4 {[%clk 0:02:32.5]} 20... O-O-O {[%clk 0:01:33.2]}
21. Qxe6+ {[%clk 0:02:29.7]} 21... Rd7 {[%clk 0:01:33.2]} 22. Qg4 {[%clk
0:02:28.5]} 22... Kb8 {[%clk 0:01:28.7]} 23. Be3 {[%clk 0:02:27.9]} 23... c5
{[%clk 0:01:20.9]} 24. d5 {[%clk 0:02:26.3]} 24... Bd6 {[%clk 0:01:20.8]} 25.
Bd2 {[%clk 0:02:24.3]} 25... Rf8 {[%clk 0:01:17.2]} 26. Re4 {[%clk 0:02:23.9]}
26... Rdf7 {[%clk 0:01:15.8]} 27. Rae1 {[%clk 0:02:22.6]} 27... a6 {[%clk
0:01:15.6]} 28. Re8+ {[%clk 0:02:14.6]} 28... Ka7 {[%clk 0:01:14.5]} 29. Rxf8
{[%clk 0:02:14.5]} 29... Rxf8 {[%clk 0:01:14.9]} 30. Re4 {[%clk 0:02:15.1]}
30... Qb6 {[%clk 0:01:11.6]} 31. b3 {[%clk 0:02:15.1]} 31... Qc7 {[%clk
0:01:09.3]} 32. Be3 {[%clk 0:02:05.8]} 32... b6 {[%clk 0:01:07.5]} 33. Qe6
{[%clk 0:02:01.6]} 33... Bxf4 {[%clk 0:01:03.5]} 34. Bxf4 {[%clk 0:01:53.2]}
34... Rxf4 {[%clk 0:01:04.4]} 35. d6 {[%clk 0:01:49.9]} 35... Qf7 {[%clk
0:00:49.5]} 36. Qxf7+ {[%clk 0:01:48.8]} 1-0

[Event "*** Titled Tuesday Blitz"]
[Site "Chess.com"]
[Date "2020.11.24"]
[Round "5"]
[White "shaheus"]
[Black "OscarAng"]
[Result "0-1"]
[WhiteElo "2209"]
[BlackElo "2369"]
[TimeControl "180+1"]
[EndTime "11:09:39 PST"]
[Termination "OscarAng won by resignation"]

1. e4 {[%clk 0:03:00]} 1... d5 {[%clk 0:03:00.7]} 2. exd5 {[%clk 0:02:59.3]}
2... Qxd5 {[%clk 0:03:01.6]} 3. Nc3 {[%clk 0:02:59.6]} 3... Qa5 {[%clk 0:03:02]}
4. Nf3 {[%clk 0:03:00.2]} 4... c6 {[%clk 0:03:02.5]} 5. Be2 {[%clk 0:03:00.7]}
5... Nf6 {[%clk 0:03:02.8]} 6. O-O {[%clk 0:03:00.4]} 6... Bf5 {[%clk
0:03:01.6]} 7. b4 {[%clk 0:03:00.1]} 7... Qc7 {[%clk 0:02:59.8]} 8. a4 {[%clk
0:03:00.2]} 8... a6 {[%clk 0:02:57.2]} 9. Rb1 {[%clk 0:02:55.3]} 9... e6 {[%clk
0:02:53.1]} 10. b5 {[%clk 0:02:55.4]} 10... axb5 {[%clk 0:02:53.3]} 11. axb5
{[%clk 0:02:55.6]} 11... Be7 {[%clk 0:02:48.1]} 12. bxc6 {[%clk 0:02:49.9]}
12... Nxc6 {[%clk 0:02:47.1]} 13. Nb5 {[%clk 0:02:50]} 13... Qd7 {[%clk
0:02:44.2]} 14. d4 {[%clk 0:02:44.9]} 14... O-O {[%clk 0:02:35.7]} 15. Nh4
{[%clk 0:02:33.2]} 15... Be4 {[%clk 0:02:33.1]} 16. f3 {[%clk 0:02:26.4]} 16...
Bg6 {[%clk 0:02:31.2]} 17. Nxg6 {[%clk 0:02:26.2]} 17... hxg6 {[%clk 0:02:32.1]}
18. Kh1 {[%clk 0:02:21.4]} 18... Rfd8 {[%clk 0:02:28.8]} 19. c3 {[%clk
0:02:21.4]} 19... Ra2 {[%clk 0:02:25.5]} 20. Re1 {[%clk 0:02:16.8]} 20... Nd5
{[%clk 0:02:22.2]} 21. Qb3 {[%clk 0:02:07.7]} 21... Rda8 {[%clk 0:02:14.4]} 22.
c4 {[%clk 0:01:51.6]} 22... Nc7 {[%clk 0:02:09.6]} 23. Nxc7 {[%clk 0:01:39.9]}
23... Qxc7 {[%clk 0:02:07.9]} 24. Rd1 {[%clk 0:01:30.4]} 24... Rxe2 {[%clk
0:02:03.2]} 25. Qxb7 {[%clk 0:01:29.2]} 25... Qxb7 {[%clk 0:01:58.3]} 26. Rxb7
{[%clk 0:01:27.5]} 26... Bf6 {[%clk 0:01:56.1]} 27. d5 {[%clk 0:01:23.5]} 27...
exd5 {[%clk 0:01:53.1]} 28. cxd5 {[%clk 0:01:23.7]} 28... Rd8 {[%clk 0:01:47.2]}
29. Bf4 {[%clk 0:01:19.8]} 29... Rxd5 {[%clk 0:01:35.5]} 30. Rbb1 {[%clk
0:01:05.4]} 30... Rxd1+ {[%clk 0:01:33.1]} 31. Rxd1 {[%clk 0:01:05]} 31... Be5
{[%clk 0:01:31.9]} 32. Bxe5 {[%clk 0:01:02.1]} 32... Nxe5 {[%clk 0:01:32.7]} 33.
Kg1 {[%clk 0:01:02]} 33... Nc4 {[%clk 0:01:31.4]} 34. h4 {[%clk 0:00:58.9]}
34... Rxg2+ {[%clk 0:01:28.4]} 0-1

[Event "*** Titled Tuesday Blitz"]
[Site "Chess.com"]
[Date "2020.11.24"]
[Round "5"]
[White "VladimirBugayev"]
[Black "PattyCastillo"]
[Result "1-0"]
[WhiteElo "2316"]
[BlackElo "2046"]
[TimeControl "180+1"]
[EndTime "11:09:53 PST"]
[Termination "VladimirBugayev won by checkmate"]

1. e4 {[%clk 0:03:00.9]} 1... c5 {[%clk 0:02:59.4]} 2. Nc3 {[%clk 0:03:01.2]}
2... d6 {[%clk 0:02:57.4]} 3. f4 {[%clk 0:02:59.7]} 3... Nf6 {[%clk 0:02:52.4]}
4. Nf3 {[%clk 0:02:59.7]} 4... g6 {[%clk 0:02:52.6]} 5. Bc4 {[%clk 0:02:59.6]}
5... Bg7 {[%clk 0:02:52.4]} 6. O-O {[%clk 0:02:59.3]} 6... O-O {[%clk
0:02:52.1]} 7. d3 {[%clk 0:02:59.9]} 7... Nc6 {[%clk 0:02:51.9]} 8. Qe1 {[%clk
0:03:00.5]} 8... e6 {[%clk 0:02:51.8]} 9. f5 {[%clk 0:02:57.9]} 9... Nd4 {[%clk
0:02:51.7]} 10. Nxd4 {[%clk 0:02:47.2]} 10... cxd4 {[%clk 0:02:51.3]} 11. Ne2
{[%clk 0:02:47.8]} 11... Ng4 {[%clk 0:02:41]} 12. Qg3 {[%clk 0:02:33.4]} 12...
Ne3 {[%clk 0:02:30.2]} 13. Bxe3 {[%clk 0:02:32.3]} 13... dxe3 {[%clk 0:02:31.1]}
14. fxg6 {[%clk 0:02:32.5]} 14... hxg6 {[%clk 0:02:29.9]} 15. c3 {[%clk
0:02:28.3]} 15... d5 {[%clk 0:02:29.2]} 16. Bb3 {[%clk 0:02:18.7]} 16... d4
{[%clk 0:02:24.1]} 17. cxd4 {[%clk 0:02:00.5]} 17... Bxd4 {[%clk 0:02:21.1]} 18.
Rab1 {[%clk 0:01:50.3]} 18... Kg7 {[%clk 0:01:55.1]} 19. e5 {[%clk 0:01:35.4]}
19... f6 {[%clk 0:01:25.7]} 20. exf6+ {[%clk 0:01:28.6]} 20... Rxf6 {[%clk
0:01:25.4]} 21. Rxf6 {[%clk 0:01:28.5]} 21... Qxf6 {[%clk 0:01:24.5]} 22. Rf1
{[%clk 0:01:28.9]} 22... Qe5 {[%clk 0:01:20.5]} 23. Qg4 {[%clk 0:01:25.5]} 23...
Bxb2 {[%clk 0:01:05.5]} 24. d4 {[%clk 0:01:18.9]} 24... Qh5 {[%clk 0:01:00.7]}
25. Qf4 {[%clk 0:01:14.7]} 25... Qxe2 {[%clk 0:00:43.2]} 26. Qf8+ {[%clk
0:01:12.9]} 26... Kh7 {[%clk 0:00:37.3]} 27. Rf7# {[%clk 0:01:13.2]} 1-0

[Event "*** Titled Tuesday Blitz"]
[Site "Chess.com"]
[Date "2020.11.24"]
[Round "5"]
[White "Szparu"]
[Black "sbouchet"]
[Result "1-0"]
[WhiteElo "2500"]
[BlackElo "2317"]
[TimeControl "180+1"]
[EndTime "11:09:55 PST"]
[Termination "Szparu won by resignation"]

1. e4 {[%clk 0:03:00.9]} 1... c5 {[%clk 0:02:59.2]} 2. Nf3 {[%clk 0:02:58.7]}
2... g6 {[%clk 0:02:58.5]} 3. c3 {[%clk 0:02:58]} 3... Bg7 {[%clk 0:02:57.9]} 4.
d4 {[%clk 0:02:57.9]} 4... cxd4 {[%clk 0:02:58.1]} 5. cxd4 {[%clk 0:02:58.4]}
5... d5 {[%clk 0:02:58.7]} 6. e5 {[%clk 0:02:54.7]} 6... Nc6 {[%clk 0:02:58.6]}
7. h3 {[%clk 0:02:23.3]} 7... Nh6 {[%clk 0:02:57.6]} 8. Nc3 {[%clk 0:02:21.9]}
8... O-O {[%clk 0:02:57]} 9. Bb5 {[%clk 0:02:16]} 9... Rb8 {[%clk 0:02:35.2]}
10. O-O {[%clk 0:02:10.8]} 10... Nf5 {[%clk 0:02:34.3]} 11. g4 {[%clk 0:01:44]}
11... Nh6 {[%clk 0:02:31.3]} 12. Bf4 {[%clk 0:01:42.2]} 12... f6 {[%clk
0:02:22.4]} 13. Bxc6 {[%clk 0:01:19.6]} 13... bxc6 {[%clk 0:02:20.8]} 14. exf6
{[%clk 0:01:18.4]} 14... exf6 {[%clk 0:02:19.2]} 15. Bxb8 {[%clk 0:01:15.2]}
15... Ba6 {[%clk 0:02:17.1]} 16. Bf4 {[%clk 0:01:10.3]} 16... Bxf1 {[%clk
0:02:16.1]} 17. Kxf1 {[%clk 0:01:09.7]} 17... f5 {[%clk 0:02:16.7]} 18. Bxh6
{[%clk 0:01:01.3]} 18... Bxh6 {[%clk 0:02:14.2]} 19. Ne5 {[%clk 0:01:01.8]}
19... fxg4 {[%clk 0:02:11.2]} 20. Qxg4 {[%clk 0:01:00]} 20... Be3 {[%clk
0:02:00.2]} 21. Nd1 {[%clk 0:00:34.4]} 21... Bh6 {[%clk 0:01:31.8]} 22. Qe6+
{[%clk 0:00:33.8]} 22... Kg7 {[%clk 0:01:31.5]} 23. Qd7+ {[%clk 0:00:25.3]}
23... Qxd7 {[%clk 0:01:29.1]} 24. Nxd7 {[%clk 0:00:25.6]} 24... Rf4 {[%clk
0:01:29]} 25. Nc5 {[%clk 0:00:22.4]} 25... Rxd4 {[%clk 0:01:28.9]} 26. Ne6+
{[%clk 0:00:22.8]} 1-0

[Event "*** Titled Tuesday Blitz"]
[Site "Chess.com"]
[Date "2020.11.24"]
[Round "5"]
[White "RTFrancisco"]
[Black "26andrej26"]
[Result "1-0"]
[WhiteElo "2448"]
[BlackElo "2503"]
[TimeControl "180+1"]
[EndTime "11:09:55 PST"]
[Termination "RTFrancisco won by resignation"]

1. c4 {[%clk 0:03:00.9]} 1... Nf6 {[%clk 0:02:47.4]} 2. g3 {[%clk 0:02:58.9]}
2... g6 {[%clk 0:02:47.7]} 3. Bg2 {[%clk 0:02:58.9]} 3... Bg7 {[%clk 0:02:48.6]}
4. Nc3 {[%clk 0:02:59]} 4... d6 {[%clk 0:02:49.2]} 5. e4 {[%clk 0:02:59.4]} 5...
O-O {[%clk 0:02:50.1]} 6. Nge2 {[%clk 0:02:58.9]} 6... c5 {[%clk 0:02:50]} 7. d3
{[%clk 0:02:57.8]} 7... Nc6 {[%clk 0:02:50.9]} 8. O-O {[%clk 0:02:57.5]} 8...
Bg4 {[%clk 0:02:51.1]} 9. h3 {[%clk 0:02:57.5]} 9... Bxe2 {[%clk 0:02:50.9]} 10.
Qxe2 {[%clk 0:02:58]} 10... Ne8 {[%clk 0:02:50.6]} 11. Kh2 {[%clk 0:02:53.5]}
11... Nc7 {[%clk 0:02:50.6]} 12. f4 {[%clk 0:02:53.6]} 12... Ne6 {[%clk
0:02:50.8]} 13. f5 {[%clk 0:02:52.7]} 13... Ned4 {[%clk 0:02:51.2]} 14. Qg4
{[%clk 0:02:29.2]} 14... a6 {[%clk 0:02:45.8]} 15. Qh4 {[%clk 0:02:25.5]} 15...
Ne5 {[%clk 0:02:36.8]} 16. Nd5 {[%clk 0:02:14.3]} 16... Ndc6 {[%clk 0:02:08.5]}
17. Bh6 {[%clk 0:02:05.1]} 17... Nxd3 {[%clk 0:01:41.7]} 18. Bxg7 {[%clk
0:01:49.9]} 18... Kxg7 {[%clk 0:01:40.6]} 19. Nxe7 {[%clk 0:01:46]} 19... Nde5
{[%clk 0:00:52.6]} 20. f6+ {[%clk 0:01:23.1]} 20... Kh8 {[%clk 0:00:52.6]} 21.
Rf4 {[%clk 0:01:00.6]} 21... Rg8 {[%clk 0:00:45.7]} 22. Qxh7+ {[%clk 0:00:59.2]}
1-0

[Event "*** Titled Tuesday Blitz"]
[Site "Chess.com"]
[Date "2020.11.24"]
[Round "5"]
[White "dretch"]
[Black "Marty435"]
[Result "1-0"]
[WhiteElo "2794"]
[BlackElo "2533"]
[TimeControl "180+1"]
[EndTime "11:09:56 PST"]
[Termination "dretch won on time"]

1. d4 {[%clk 0:03:00.9]} 1... Nf6 {[%clk 0:02:04.9]} 2. c4 {[%clk 0:02:59.9]}
2... e6 {[%clk 0:02:04.6]} 3. Nc3 {[%clk 0:02:59.6]} 3... d5 {[%clk 0:02:05]} 4.
cxd5 {[%clk 0:02:58.8]} 4... exd5 {[%clk 0:02:05.9]} 5. Bg5 {[%clk 0:02:58.8]}
5... c6 {[%clk 0:02:06.6]} 6. e3 {[%clk 0:02:58.4]} 6... Bd6 {[%clk 0:02:06.9]}
7. Bd3 {[%clk 0:02:54.5]} 7... O-O {[%clk 0:02:07]} 8. Qc2 {[%clk 0:02:52.4]}
8... h6 {[%clk 0:02:07.1]} 9. Bh4 {[%clk 0:02:52.8]} 9... Re8 {[%clk 0:02:07.6]}
10. Nf3 {[%clk 0:02:50.7]} 10... Be6 {[%clk 0:02:07.9]} 11. Ne5 {[%clk
0:02:46.6]} 11... a5 {[%clk 0:01:56.9]} 12. f4 {[%clk 0:02:43]} 12... Na6 {[%clk
0:01:41.4]} 13. Bh7+ {[%clk 0:02:32.7]} 13... Kf8 {[%clk 0:01:12.1]} 14. O-O
{[%clk 0:02:21.8]} 14... Nb4 {[%clk 0:01:05.9]} 15. Qe2 {[%clk 0:02:19.2]} 15...
g5 {[%clk 0:00:54.8]} 16. fxg5 {[%clk 0:02:18.9]} 16... Nxh7 {[%clk 0:00:54.8]}
17. Nxf7 {[%clk 0:01:44.4]} 17... Bxf7 {[%clk 0:00:49]} 18. Qh5 {[%clk 0:01:44]}
18... Nf6 {[%clk 0:00:33]} 19. Qxh6+ {[%clk 0:01:43]} 19... Kg8 {[%clk
0:00:29.1]} 20. g6 {[%clk 0:01:34.6]} 1-0

[Event "*** Titled Tuesday Blitz"]
[Site "Chess.com"]
[Date "2020.11.24"]
[Round "5"]
[White "ajedrezhoy"]
[Black "TheKingDoctor"]
[Result "0-1"]
[WhiteElo "2208"]
[BlackElo "2121"]
[TimeControl "180+1"]
[EndTime "11:10:01 PST"]
[Termination "TheKingDoctor won by resignation"]

1. d4 {[%clk 0:03:00.9]} 1... Nf6 {[%clk 0:02:59.3]} 2. c4 {[%clk 0:02:59.4]}
2... g6 {[%clk 0:02:59.2]} 3. Nc3 {[%clk 0:02:56.5]} 3... Bg7 {[%clk 0:02:58.7]}
4. e4 {[%clk 0:02:53.5]} 4... d6 {[%clk 0:02:58.2]} 5. Nf3 {[%clk 0:02:53.3]}
5... O-O {[%clk 0:02:57.6]} 6. Be2 {[%clk 0:02:53.5]} 6... Qe8 {[%clk
0:02:56.6]} 7. O-O {[%clk 0:02:53.1]} 7... e5 {[%clk 0:02:56.4]} 8. d5 {[%clk
0:02:51.4]} 8... Nfd7 {[%clk 0:02:54.4]} 9. b4 {[%clk 0:02:39.6]} 9... h6 {[%clk
0:02:42.2]} 10. Rb1 {[%clk 0:02:36.7]} 10... f5 {[%clk 0:02:40.3]} 11. g3 {[%clk
0:02:30.5]} 11... f4 {[%clk 0:02:24.2]} 12. Nb5 {[%clk 0:02:23.7]} 12... Na6
{[%clk 0:02:19.2]} 13. a3 {[%clk 0:02:23.2]} 13... g5 {[%clk 0:02:02.7]} 14. Nd2
{[%clk 0:02:22.8]} 14... Nf6 {[%clk 0:01:54.5]} 15. f3 {[%clk 0:02:15.6]} 15...
Bh3 {[%clk 0:01:39.6]} 16. Rf2 {[%clk 0:02:14.5]} 16... fxg3 {[%clk 0:01:31.3]}
17. hxg3 {[%clk 0:02:13.5]} 17... Nh5 {[%clk 0:01:30.9]} 18. Kh2 {[%clk
0:02:12.8]} 18... Nxg3 {[%clk 0:01:07.9]} 19. Kxg3 {[%clk 0:02:11.5]} 19... Qh5
{[%clk 0:01:08]} 20. Kh2 {[%clk 0:01:54.4]} 20... Qh4 {[%clk 0:00:41]} 21. Qe1
{[%clk 0:01:53.4]} 21... g4 {[%clk 0:00:25.2]} 22. Nf1 {[%clk 0:01:37.3]} 22...
Bxf1+ {[%clk 0:00:23.9]} 23. Kg1 {[%clk 0:01:37.3]} 23... Bh3 {[%clk 0:00:17.3]}
24. Rh2 {[%clk 0:01:28.8]} 24... Qxe1+ {[%clk 0:00:16.1]} 0-1

[Event "*** Titled Tuesday Blitz"]
[Site "Chess.com"]
[Date "2020.11.24"]
[Round "5"]
[White "Sjakkerntobi"]
[Black "jacky72"]
[Result "0-1"]
[WhiteElo "2361"]
[BlackElo "2693"]
[TimeControl "180+1"]
[EndTime "11:10:05 PST"]
[Termination "jacky72 won by resignation"]

1. e4 {[%clk 0:03:00.9]} 1... e5 {[%clk 0:02:55]} 2. Nf3 {[%clk 0:02:58.6]} 2...
Nc6 {[%clk 0:02:55.9]} 3. Bb5 {[%clk 0:02:57.6]} 3... a6 {[%clk 0:02:56]} 4. Ba4
{[%clk 0:02:57.4]} 4... Nf6 {[%clk 0:02:56.6]} 5. O-O {[%clk 0:02:56.6]} 5...
Be7 {[%clk 0:02:57.1]} 6. Re1 {[%clk 0:02:53.4]} 6... b5 {[%clk 0:02:57.6]} 7.
Bb3 {[%clk 0:02:53.1]} 7... O-O {[%clk 0:02:58.5]} 8. a4 {[%clk 0:02:51.9]} 8...
Rb8 {[%clk 0:02:57.2]} 9. d3 {[%clk 0:02:29.9]} 9... d5 {[%clk 0:02:52.3]} 10.
exd5 {[%clk 0:02:27.5]} 10... Nxd5 {[%clk 0:02:53.2]} 11. Nbd2 {[%clk
0:02:27.1]} 11... Bg4 {[%clk 0:02:50.2]} 12. axb5 {[%clk 0:02:10.1]} 12... axb5
{[%clk 0:02:48.5]} 13. Nf1 {[%clk 0:02:02]} 13... Nd4 {[%clk 0:02:44.5]} 14.
Rxe5 {[%clk 0:01:04.1]} 14... c6 {[%clk 0:02:40.7]} 15. Re4 {[%clk 0:01:00]}
15... Nxf3+ {[%clk 0:02:37.7]} 16. gxf3 {[%clk 0:01:00.9]} 16... Bf5 {[%clk
0:02:38]} 17. Re1 {[%clk 0:00:59.3]} 17... Bc5 {[%clk 0:02:38.4]} 18. Be3 {[%clk
0:00:57.5]} 18... Bd6 {[%clk 0:02:33]} 19. Bxd5 {[%clk 0:00:53.4]} 19... cxd5
{[%clk 0:02:33.9]} 20. f4 {[%clk 0:00:54]} 20... Qh4 {[%clk 0:02:31.7]} 21. Qf3
{[%clk 0:00:51.6]} 21... d4 {[%clk 0:02:26.4]} 22. Bd2 {[%clk 0:00:36.8]} 22...
Rbc8 {[%clk 0:02:20.3]} 23. Rec1 {[%clk 0:00:28]} 23... Rfe8 {[%clk 0:02:15.4]}
24. Ng3 {[%clk 0:00:27.7]} 24... Bh3 {[%clk 0:02:11]} 25. Ne4 {[%clk 0:00:26.3]}
25... Re6 {[%clk 0:02:06.1]} 26. Ng5 {[%clk 0:00:17.4]} 26... Rg6 {[%clk
0:02:04.8]} 27. Kh1 {[%clk 0:00:16.4]} 27... Bd7 {[%clk 0:02:03.3]} 28. Qg2
{[%clk 0:00:11.2]} 28... Bxf4 {[%clk 0:01:59.7]} 29. Bxf4 {[%clk 0:00:09.4]}
29... Qxf4 {[%clk 0:02:00]} 30. Nh3 {[%clk 0:00:09.1]} 30... Qh4 {[%clk
0:01:56.8]} 31. Qe4 {[%clk 0:00:02.7]} 31... Bc6 {[%clk 0:01:56.3]} 32. Qxc6
{[%clk 0:00:02.3]} 32... Rgxc6 {[%clk 0:01:57.2]} 33. Ra8 {[%clk 0:00:02.7]} 0-1

[Event "*** Titled Tuesday Blitz"]
[Site "Chess.com"]
[Date "2020.11.24"]
[Round "5"]
[White "kingofthenil"]
[Black "biostatistician"]
[Result "1-0"]
[WhiteElo "2768"]
[BlackElo "2546"]
[TimeControl "180+1"]
[EndTime "11:10:08 PST"]
[Termination "kingofthenil won by resignation"]

1. e4 {[%clk 0:03:00.9]} 1... e6 {[%clk 0:02:59.7]} 2. d4 {[%clk 0:03:00.8]}
2... d5 {[%clk 0:03:00.6]} 3. e5 {[%clk 0:03:01.1]} 3... b6 {[%clk 0:03:00.1]}
4. f4 {[%clk 0:02:40]} 4... Nh6 {[%clk 0:02:59.1]} 5. Nf3 {[%clk 0:02:40]} 5...
Nf5 {[%clk 0:02:49.3]} 6. c3 {[%clk 0:02:19.8]} 6... Qd7 {[%clk 0:02:48.2]} 7.
g4 {[%clk 0:02:10.1]} 7... Nh6 {[%clk 0:02:47.7]} 8. h3 {[%clk 0:02:09.5]} 8...
Ba6 {[%clk 0:02:46.5]} 9. Bxa6 {[%clk 0:02:09.7]} 9... Nxa6 {[%clk 0:02:47.4]}
10. O-O {[%clk 0:02:10.6]} 10... c5 {[%clk 0:02:47.4]} 11. Qe2 {[%clk
0:02:04.6]} 11... Nb8 {[%clk 0:02:47.1]} 12. Be3 {[%clk 0:01:56.4]} 12... Nc6
{[%clk 0:02:46.6]} 13. Nbd2 {[%clk 0:01:54.6]} 13... Be7 {[%clk 0:02:32.5]} 14.
Kh1 {[%clk 0:01:50.1]} 14... f6 {[%clk 0:02:10.2]} 15. exf6 {[%clk 0:01:39.8]}
15... gxf6 {[%clk 0:02:10.1]} 16. f5 {[%clk 0:01:40]} 16... Nf7 {[%clk
0:02:10.1]} 17. fxe6 {[%clk 0:01:29.4]} 17... Qxe6 {[%clk 0:02:11]} 18. Rae1
{[%clk 0:01:29.2]} 18... O-O {[%clk 0:02:09.3]} 19. Nh4 {[%clk 0:01:24]} 19...
cxd4 {[%clk 0:02:05.1]} 20. cxd4 {[%clk 0:01:22.4]} 20... Rae8 {[%clk
0:01:58.9]} 21. Nf5 {[%clk 0:01:11.7]} 21... Bb4 {[%clk 0:01:59]} 22. Qf3 {[%clk
0:01:11]} 22... Ng5 {[%clk 0:01:28.6]} 23. Bxg5 {[%clk 0:00:51.2]} 23... Qxe1
{[%clk 0:01:28.2]} 24. Nh6+ {[%clk 0:00:51.5]} 24... Kg7 {[%clk 0:01:22.7]} 25.
Bxf6+ {[%clk 0:00:48.4]} 25... Kxh6 {[%clk 0:01:17]} 26. Qf4+ {[%clk 0:00:46.9]}
26... Kg6 {[%clk 0:01:16.6]} 27. Qg5+ {[%clk 0:00:45.8]} 27... Kf7 {[%clk
0:01:16.6]} 28. Qg7+ {[%clk 0:00:46.7]} 28... Ke6 {[%clk 0:01:16.7]} 29. Rxe1+
{[%clk 0:00:47.6]} 29... Kd6 {[%clk 0:01:14.6]} 30. Rxe8 {[%clk 0:00:44.3]}
30... Rxe8 {[%clk 0:01:12.6]} 31. Nf3 {[%clk 0:00:44.7]} 1-0

[Event "*** Titled Tuesday Blitz"]
[Site "Chess.com"]
[Date "2020.11.24"]
[Round "5"]
[White "RestartingChess"]
[Black "guillembaches"]
[Result "1-0"]
[WhiteElo "2556"]
[BlackElo "2394"]
[TimeControl "180+1"]
[EndTime "11:10:17 PST"]
[Termination "RestartingChess won by resignation"]

1. e4 {[%clk 0:03:00.9]} 1... c5 {[%clk 0:03:00]} 2. Nf3 {[%clk 0:03:00.1]} 2...
d6 {[%clk 0:03:00.6]} 3. Bb5+ {[%clk 0:02:59.7]} 3... Bd7 {[%clk 0:03:00.5]} 4.
c4 {[%clk 0:03:00.6]} 4... e5 {[%clk 0:02:53.5]} 5. Nc3 {[%clk 0:02:59.8]} 5...
Ne7 {[%clk 0:02:42.3]} 6. d3 {[%clk 0:02:59.2]} 6... h6 {[%clk 0:02:37.5]} 7. h3
{[%clk 0:02:38.3]} 7... g6 {[%clk 0:02:37.2]} 8. Be3 {[%clk 0:02:35.7]} 8... Bg7
{[%clk 0:02:36.4]} 9. Qd2 {[%clk 0:02:34.7]} 9... Nbc6 {[%clk 0:02:33.5]} 10.
Nd5 {[%clk 0:02:27.5]} 10... Nxd5 {[%clk 0:02:24.3]} 11. cxd5 {[%clk 0:02:25.4]}
11... Nd4 {[%clk 0:02:24]} 12. Bxd7+ {[%clk 0:02:23.8]} 12... Qxd7 {[%clk
0:02:22.4]} 13. Bxd4 {[%clk 0:02:24.5]} 13... cxd4 {[%clk 0:02:16]} 14. Qb4
{[%clk 0:02:24.2]} 14... O-O {[%clk 0:02:09.1]} 15. O-O {[%clk 0:02:24.1]} 15...
f5 {[%clk 0:02:05.6]} 16. Nd2 {[%clk 0:02:16.2]} 16... f4 {[%clk 0:01:55.4]} 17.
f3 {[%clk 0:02:15.7]} 17... g5 {[%clk 0:01:53.7]} 18. Rac1 {[%clk 0:02:11.9]}
18... h5 {[%clk 0:01:48.7]} 19. Rc4 {[%clk 0:02:05.5]} 19... g4 {[%clk
0:01:46.6]} 20. hxg4 {[%clk 0:02:02.8]} 20... hxg4 {[%clk 0:01:46.6]} 21. fxg4
{[%clk 0:02:03.3]} 21... Rf6 {[%clk 0:01:22.1]} 22. g5 {[%clk 0:01:43.2]} 22...
Rg6 {[%clk 0:01:18.8]} 23. Nf3 {[%clk 0:01:42.6]} 23... Qg4 {[%clk 0:00:53.6]}
24. Qxb7 {[%clk 0:01:39]} 24... Rf8 {[%clk 0:00:53.5]} 25. Rf2 {[%clk
0:00:58.1]} 25... Rf7 {[%clk 0:00:44.4]} 26. Qc8+ {[%clk 0:00:56.3]} 26... Bf8
{[%clk 0:00:43.9]} 27. Qxg4 {[%clk 0:00:54.9]} 1-0

[Event "*** Titled Tuesday Blitz"]
[Site "Chess.com"]
[Date "2020.11.24"]
[Round "5"]
[White "BocharovD"]
[Black "Shahinyan_ChessMood"]
[Result "1-0"]
[WhiteElo "2811"]
[BlackElo "2840"]
[TimeControl "180+1"]
[EndTime "11:10:19 PST"]
[Termination "BocharovD won by resignation"]

1. c4 {[%clk 0:03:00.9]} 1... Nf6 {[%clk 0:02:59.3]} 2. Nf3 {[%clk 0:02:58.8]}
2... c5 {[%clk 0:02:59.8]} 3. g3 {[%clk 0:02:58.3]} 3... g6 {[%clk 0:03:00.2]}
4. Bg2 {[%clk 0:02:58.2]} 4... Bg7 {[%clk 0:03:00.7]} 5. d4 {[%clk 0:02:58.7]}
5... O-O {[%clk 0:02:59.9]} 6. Nc3 {[%clk 0:02:57.6]} 6... d6 {[%clk 0:02:59.4]}
7. O-O {[%clk 0:02:56.9]} 7... Nc6 {[%clk 0:02:52.5]} 8. dxc5 {[%clk 0:02:56.1]}
8... dxc5 {[%clk 0:02:52]} 9. Bf4 {[%clk 0:02:56.2]} 9... Qa5 {[%clk 0:02:47.5]}
10. Bd2 {[%clk 0:02:18.5]} 10... Qc7 {[%clk 0:02:22.7]} 11. Qc1 {[%clk
0:02:05.1]} 11... Rd8 {[%clk 0:02:18.3]} 12. Bf4 {[%clk 0:02:00.8]} 12... e5
{[%clk 0:02:11.2]} 13. Bg5 {[%clk 0:02:00.9]} 13... Nd4 {[%clk 0:02:10.6]} 14.
Nd2 {[%clk 0:01:59.1]} 14... Be6 {[%clk 0:01:12.7]} 15. e3 {[%clk 0:01:56.1]}
15... Nf5 {[%clk 0:01:11.5]} 16. Nde4 {[%clk 0:01:48.3]} 16... Qe7 {[%clk
0:00:49.9]} 17. b3 {[%clk 0:01:35.6]} 17... Rab8 {[%clk 0:00:49.3]} 18. Qa3
{[%clk 0:01:28.9]} 18... b6 {[%clk 0:00:31.2]} 19. Nxf6+ {[%clk 0:01:21.3]}
19... Bxf6 {[%clk 0:00:32.1]} 20. Bxf6 {[%clk 0:01:21.4]} 20... Qxf6 {[%clk
0:00:33]} 21. Qxa7 {[%clk 0:01:21.6]} 21... Qg7 {[%clk 0:00:20.5]} 22. Rad1
{[%clk 0:01:18.4]} 22... Nd6 {[%clk 0:00:07.3]} 23. Rxd6 {[%clk 0:01:15.9]} 1-0